bitfinex/quotes_BTCUSD_20250218
["timestamp","ask_amount","ask_price","bid_price","bid_amount"]
[1739917823168,0.00030122,95607.0,95606.0,1.09775889]
[1739917825253,0.00130122,95607.0,95606.0,1.09775889]
[1739917825468,0.00030122,95607.0,95606.0,1.09775889]
[1739917825841,0.00130122,95607.0,95606.0,0.55205889]
[1739917826020,0.00030122,95607.0,95606.0,0.63586011]
[1739917826216,0.00130122,95607.0,95606.0,0.63586011]
[1739917827992,0.00130122,95607.0,95606.0,0.79275311]
[1739917829234,0.00130122,95607.0,95606.0,0.63586011]
[1739917829471,0.00130122,95607.0,95606.0,0.79275311]
[1739917829891,0.00130122,95607.0,95606.0,1.18156011]
[1739917830434,0.00130122,95607.0,95606.0,1.33845311]
[1739917831068,0.00130122,95607.0,95606.0,1.18156011]
[1739917831284,0.00130122,95607.0,95606.0,1.33845311]
[1739917832004,0.01769389,95607.0,95606.0,1.33845311]
[1739917834547,0.00030122,95607.0,95606.0,1.33845311]
[1739917834994,0.00130122,95607.0,95606.0,1.33845311]
[1739917835191,0.00030122,95607.0,95606.0,1.33845311]
[1739917835455,0.00130122,95607.0,95606.0,1.33845311]
[1739917835693,0.00030122,95607.0,95606.0,1.33845311]
[1739917836106,0.00130122,95607.0,95606.0,1.33845311]
[1739917840335,0.01769312,95607.0,95606.0,1.33845311]
[1739917841971,0.00130122,95607.0,95606.0,1.33845311]
[1739917846524,0.01769276,95607.0,95606.0,1.33845311]
[1739917846722,0.01669276,95607.0,95606.0,1.33845311]
[1739917847102,0.01769276,95607.0,95606.0,1.34345311]
[1739917847307,0.01669276,95607.0,95606.0,1.33845311]
[1739917847739,0.01769276,95607.0,95606.0,1.34345311]
[1739917847934,0.01669276,95607.0,95606.0,1.33845311]
[1739917848490,0.01769276,95607.0,95606.0,1.33845311]
[1739917849353,0.01769276,95607.0,95606.0,0.52905889]
[1739917849552,0.01769276,95607.0,95606.0,0.97225524]
[1739917849766,0.01769276,95607.0,95606.0,0.99525524]
[1739917849939,0.00130122,95607.0,95606.0,0.97225524]
[1739917850159,0.00230122,95607.0,95606.0,0.97725524]
[1739917850353,0.00030122,95607.0,95606.0,0.99525524]
[1739917850566,0.00030122,95607.0,95606.0,1.09896711]
[1739917850810,0.05209279,95682.0,95634.0,0.02]
[1739917850985,0.0526827,95680.0,95634.0,0.02]
[1739917851163,4.7063,95679.0,95634.0,0.02]
[1739917851367,4.2578,95678.0,95634.0,0.02]
[1739917851579,0.05828,95677.0,95634.0,0.02]
[1739917851796,0.10250365,95676.0,95634.0,0.02]
[1739917851979,0.06594147,95679.0,95634.0,0.02]
[1739917852307,0.02231021,95677.0,95634.0,0.02]
[1739917852508,0.02103814,95639.0,95634.0,0.02]
[1739917853774,0.02116931,95639.0,95634.0,0.02]
[1739917854020,0.00788222,95635.0,95634.0,0.02]
[1739917854755,0.00788222,95635.0,95634.0,0.021]
[1739917854953,0.00788222,95635.0,95634.0,0.02]
[1739917855389,0.00788222,95635.0,95634.0,0.021]
[1739917855787,0.00788222,95635.0,95634.0,0.02727826]
[1739917856013,0.02427412,95635.0,95634.0,0.02727826]
[1739917856599,0.02427412,95635.0,95634.0,0.021]
[1739917856826,0.02427412,95635.0,95634.0,0.02730459]
[1739917863055,0.00788222,95635.0,95634.0,0.02730459]
[1739917866078,0.02427363,95635.0,95634.0,0.02730459]
[1739917866232,0.02427363,95635.0,95634.0,0.02764479]
[1739917867251,0.01639141,95635.0,95634.0,0.10764479]
[1739917867469,0.01639141,95635.0,95634.0,0.12764479]
[1739917868779,0.01639141,95635.0,95634.0,0.38669325]
[1739917872910,0.01639141,95635.0,95634.0,0.36669325]
[1739917873167,0.00013117,95639.0,95635.0,0.02]
[1739917873378,0.00013117,95639.0,95634.0,0.28669325]
[1739917873602,0.00013117,95639.0,95636.0,0.0067781]
[1739917873846,0.00013117,95639.0,95634.0,0.28038866]
[1739917873847,0.00013117,95639.0,95635.0,0.00679174]
[1739917874171,0.00013117,95639.0,95637.0,0.00680396]
[1739917874283,0.00013117,95639.0,95636.0,0.00680443]
[1739917874530,0.00013117,95639.0,95634.0,0.27938866]
[1739917874801,0.00013117,95639.0,95637.0,0.00680396]
[1739917875052,0.00013117,95639.0,95634.0,0.27938866]
[1739917875269,0.00013117,95639.0,95638.0,0.00680349]
[1739917875677,0.00013117,95639.0,95634.0,0.27938866]
[1739917875832,0.00013117,95639.0,95635.0,0.00680491]
[1739917876044,0.01652186,95639.0,95635.0,0.00680491]
[1739917876781,0.01652186,95639.0,95638.0,0.02]
[1739917877227,0.01652186,95639.0,95638.0,0.02686932]
[1739917879338,0.01652186,95639.0,95633.0,0.0003402]
[1739917879492,0.01652186,95639.0,95625.0,0.04912764]
[1739917879695,0.01652186,95639.0,95617.0,0.24364932]
[1739917879900,0.01652186,95639.0,95617.0,0.1905469]
[1739917880533,0.01652186,95639.0,95617.0,0.1148929]
[1739917880715,0.01652186,95639.0,95618.0,0.3246]
[1739917881512,0.01652186,95639.0,95621.0,0.08380122]
[1739917882904,0.00013117,95639.0,95621.0,0.08380122]
[1739917885761,0.15,95654.0,95621.0,0.02706912]
[1739917886065,0.01639187,95635.0,95621.0,0.02720029]
[1739917886265,0.165,95654.0,95618.0,0.18338012]
[1739917886431,0.15013112,95654.0,95618.0,0.18338012]
[1739917886777,0.01639209,95632.0,95618.0,0.18338012]
[1739917886989,0.02091279,95642.0,95618.0,0.18338012]
[1739917888408,0.00775657,95629.0,95618.0,0.18338012]
[1739917889042,0.01639276,95627.0,95618.0,0.18338012]
[1739917889289,0.01639276,95627.0,95619.0,0.00104567]
[1739917890094,0.01639276,95627.0,95618.0,0.18672032]
[1739917890262,0.01639276,95627.0,95618.0,0.18372032]
[1739917890441,0.01639276,95627.0,95619.0,0.004]
[1739917892548,0.05267719,95627.0,95619.0,0.004]
[1739917893388,0.03628443,95627.0,95619.0,0.004]
[1739917893744,0.00775657,95629.0,95619.0,0.004]
[1739917894345,0.02091279,95642.0,95619.0,0.004]
[1739917894859,0.0491,95647.0,95620.0,0.0010456]
[1739917895065,0.0491,95653.0,95619.0,0.004]
[1739917895386,0.07732889,95650.0,95619.0,0.004]
[1739917895811,0.07732889,95650.0,95618.0,0.50832032]
[1739917895812,0.0213016,95643.0,95618.0,0.50832032]
[1739917896196,0.03769316,95643.0,95618.0,0.50832032]
[1739917896595,0.03769316,95643.0,95621.0,0.08380122]
[1739917896835,0.03769316,95643.0,95622.0,0.0784]
[1739917897224,0.03869316,95643.0,95622.0,0.0784]
[1739917897613,0.01739156,95643.0,95622.0,0.0784]
[1739917897971,0.01839156,95643.0,95622.0,0.0784]
[1739917898425,0.00783236,95631.0,95622.0,0.403]
[1739917898647,0.01839156,95643.0,95623.0,0.00104561]
[1739917898866,0.002,95643.0,95624.0,0.0784]
[1739917899093,0.01639208,95639.0,95625.0,0.00104556]
[1739917899351,0.01639208,95639.0,95625.0,0.00703285]
[1739917899815,0.01639208,95639.0,95625.0,0.00807842]
[1739917900060,0.01639208,95639.0,95626.0,0.00104557]
[1739917900477,0.01639208,95639.0,95627.0,0.00695956]
[1739917901033,0.15,95637.0,95627.0,0.00695956]
[1739917901228,0.05824,95636.0,95627.0,0.00695956]
[1739917901637,0.05824,95636.0,95625.0,0.00013112]
[1739917901838,0.13848868,95638.0,95626.0,0.00469281]
[1739917902039,0.13848868,95638.0,95627.0,0.0805]
[1739917902241,0.13848868,95638.0,95628.0,0.00575062]
[1739917902242,0.00791232,95635.0,95628.0,0.00575062]
[1739917902887,0.00791232,95635.0,95629.0,0.0452]
[1739917903161,0.00791232,95635.0,95629.0,0.04624559]
[1739917903395,0.00791232,95635.0,95630.0,0.00471725]
[1739917904618,0.00791232,95635.0,95630.0,0.00771725]
[1739917905964,0.00791232,95635.0,95631.0,0.0754]
[1739917906120,0.01639064,95634.0,95631.0,0.0754]
[1739917906320,0.01639064,95634.0,95632.0,0.00480847]
[1739917906707,0.01639064,95634.0,95631.0,0.0754]
[1739917906926,0.01639064,95634.0,95632.0,0.00480847]
[1739917907383,0.01639064,95634.0,95631.0,0.0794]
[1739917907585,0.01639064,95634.0,95633.0,0.004808]
[1739917907777,0.01639064,95634.0,95632.0,0.00482164]
[1739917907985,0.01639064,95634.0,95633.0,0.00483433]
[1739917908389,0.01639064,95634.0,95632.0,0.004]
[1739917908563,0.01639064,95634.0,95633.0,0.00486067]
[1739917909650,0.01639064,95634.0,95631.0,0.0754]
[1739917909846,0.01639064,95634.0,95633.0,0.004]
[1739917910052,0.01639064,95634.0,95633.0,0.0089265]
[1739917912877,0.00776652,95636.0,95633.0,0.0089265]
[1739917914024,0.00776652,95636.0,95633.0,0.0049265]
[1739917914414,0.00776652,95636.0,95633.0,0.0089265]
[1739917915140,0.00776652,95636.0,95633.0,0.0049265]
[1739917915740,0.0001701,95683.0,95639.0,0.209119]
[1739917915941,0.0001701,95683.0,95663.0,0.0791]
[1739917916167,0.01638627,95673.0,95665.0,0.0791]
[1739917916409,0.01638627,95673.0,95667.0,0.0791]
[1739917916626,0.06691625,95672.0,95668.0,0.00104494]
[1739917916807,0.06691625,95672.0,95670.0,0.023]
[1739917917106,0.06691625,95672.0,95671.0,0.08699044]
[1739917917307,0.06691625,95672.0,95671.0,0.86072246]
[1739917917516,0.06691625,95672.0,95671.0,0.97007744]
[1739917917682,0.06691625,95672.0,95671.0,0.96218109]
[1739917918287,0.0001701,95683.0,95682.0,0.156769]
[1739917918512,0.00030124,95683.0,95682.0,0.18948102]
[1739917918661,0.15706824,95683.0,95682.0,0.18948102]
[1739917918868,0.17344881,95683.0,95682.0,0.18948102]
[1739917919113,0.17344881,95683.0,95682.0,0.21248102]
[1739917920059,0.01668181,95683.0,95682.0,0.21248102]
[1739917920283,0.17344881,95683.0,95682.0,0.21248102]
[1739917920488,0.17344881,95683.0,95682.0,0.21148102]
[1739917920705,0.01668181,95683.0,95682.0,0.21148102]
[1739917921141,0.01768181,95683.0,95682.0,0.21848102]
[1739917921938,0.01768181,95683.0,95682.0,0.54308102]
[1739917922594,0.01768181,95683.0,95682.0,0.53608102]
[1739917922815,0.01668181,95683.0,95682.0,0.53608102]
[1739917923037,0.00030124,95683.0,95682.0,0.54308102]
[1739917923286,0.00030124,95683.0,95682.0,0.53608102]
[1739917924416,0.00030124,95683.0,95682.0,0.54308102]
[1739917924633,0.00030124,95683.0,95682.0,0.53608102]
[1739917926164,0.01668143,95683.0,95682.0,0.54308102]
[1739917926388,0.01668143,95683.0,95682.0,0.54342122]
[1739917926623,0.01668143,95683.0,95682.0,0.53642122]
[1739917927081,0.01668143,95683.0,95682.0,0.54342122]
[1739917927521,0.07344543,95685.0,95683.0,0.023]
[1739917927733,0.00017,95687.0,95685.0,0.023]
[1739917927946,0.00017,95687.0,95686.0,0.12550365]
[1739917928165,0.00017,95687.0,95686.0,0.13047913]
[1739917928309,0.01655054,95687.0,95686.0,0.13047913]
[1739917930247,0.01655054,95687.0,95686.0,0.13747913]
[1739917930588,0.01655054,95687.0,95686.0,0.13047913]
[1739917930810,0.05351469,95687.0,95686.0,0.45507913]
[1739917931026,0.01655054,95687.0,95686.0,0.45507913]
[1739917931602,0.01655054,95687.0,95686.0,0.46207913]
[1739917932751,0.01655054,95687.0,95686.0,0.45507913]
[1739917933220,0.00017,95687.0,95686.0,0.45507913]
[1739917933477,0.00017,95687.0,95686.0,0.46207913]
[1739917933714,0.03612553,95687.0,95686.0,0.46207913]
[1739917933949,0.00017,95687.0,95686.0,0.46207913]
[1739917934650,0.00017,95687.0,95686.0,0.45507913]
[1739917936281,0.01654989,95687.0,95686.0,0.46207913]
[1739917936516,0.01654989,95687.0,95686.0,0.45507913]
[1739917936753,0.01654989,95687.0,95686.0,0.46207913]
[1739917936984,0.05328628,95687.0,95686.0,1.00777913]
[1739917937225,0.01654989,95687.0,95686.0,1.00777913]
[1739917939455,0.05966405,95687.0,95686.0,1.00777913]
[1739917939687,0.05966405,95687.0,95686.0,0.33657548]
[1739917942445,0.05966405,95687.0,95686.0,0.49147548]
[1739917942648,0.00017,95687.0,95686.0,0.59397913]
[1739917943062,0.00017,95687.0,95686.0,0.57097913]
[1739917943434,0.00017,95687.0,95686.0,0.56397913]
[1739917943844,0.00017,95687.0,95686.0,0.57097913]
[1739917944076,0.00017,95687.0,95686.0,0.56397913]
[1739917944275,0.00017,95687.0,95686.0,0.57097913]
[1739917944647,0.00017,95687.0,95686.0,0.56397913]
[1739917944877,0.00017,95687.0,95686.0,0.57097913]
[1739917946372,0.00017,95687.0,95686.0,0.46295991]
[1739917947138,0.01655008,95687.0,95686.0,0.33105991]
[1739917948077,0.01655008,95687.0,95686.0,0.32591022]
[1739917948339,0.01655008,95687.0,95686.0,0.31891022]
[1739917949788,0.01655008,95687.0,95686.0,0.32591022]
[1739917950217,0.01655008,95687.0,95686.0,0.31891022]
[1739917950230,0.01655008,95687.0,95685.0,0.0003402]
[1739917950447,0.01655008,95687.0,95686.0,0.006]
[1739917951105,0.01655008,95687.0,95662.0,0.31891022]
[1739917951106,0.0779,95686.0,95662.0,0.31891022]
[1739917951406,0.01655008,95687.0,95648.0,0.0476]
[1739917951656,0.01655008,95687.0,95686.0,0.1285]
[1739917952088,0.01655008,95687.0,95686.0,0.6742]
[1739917952302,0.01655008,95687.0,95686.0,0.6972]
[1739917952749,0.01655008,95687.0,95686.0,0.79970365]
[1739917953185,0.01655008,95687.0,95686.0,0.80470365]
[1739917953410,0.01655008,95687.0,95686.0,0.79970365]
[1739917953815,0.01755008,95687.0,95686.0,0.80670365]
[1739917954020,0.00117,95687.0,95686.0,0.80670365]
[1739917955092,0.00017,95687.0,95686.0,0.79970365]
[1739917955713,0.0005701,95689.0,95688.0,0.02]
[1739917955931,0.0005701,95689.0,95688.0,0.27504826]
[1739917956129,0.0005701,95689.0,95688.0,0.27400365]
[1739917956345,0.01340742,95691.0,95690.0,0.1715]
[1739917956548,0.01340742,95691.0,95690.0,0.42504814]
[1739917956756,0.01340742,95691.0,95686.0,0.23529751]
[1739917956757,0.05506832,95691.0,95686.0,0.01928151]
[1739917956960,0.0714469,95691.0,95686.0,0.01928151]
[1739917957169,0.029786,95691.0,95688.0,0.007]
[1739917957377,0.029786,95691.0,95690.0,0.0811]
[1739917957584,0.029786,95691.0,95690.0,0.1041]
[1739917957786,0.029786,95691.0,95690.0,0.1111]
[1739917958003,0.029786,95691.0,95690.0,1.07121387]
[1739917958202,0.02881021,95755.0,95728.0,0.00794488]
[1739917958418,0.02130313,95740.0,95728.0,0.00794488]
[1739917959244,0.01637611,95749.0,95728.0,0.00794488]
[1739917959449,0.01637611,95749.0,95735.0,0.00794488]
[1739917959860,0.00779225,95736.0,95735.0,0.00794488]
[1739917960478,0.00779225,95736.0,95704.0,0.00104454]
[1739917960479,0.04505267,95736.0,95720.0,0.00750732]
[1739917960688,0.02416885,95736.0,95720.0,0.00750732]
[1739917961072,0.02816885,95736.0,95720.0,0.00750732]
[1739917961284,0.0076,95735.0,95720.0,0.00750732]
[1739917961652,0.02045671,95733.0,95720.0,0.00750732]
[1739917963124,0.0076,95735.0,95720.0,0.00850732]
[1739917963526,0.0076,95735.0,95720.0,0.00750732]
[1739917963682,0.02091344,95734.0,95720.0,0.00750732]
[1739917964059,0.006,95733.0,95720.0,0.00850732]
[1739917964264,0.006,95733.0,95720.0,0.00750732]
[1739917964475,0.006,95733.0,95720.0,0.00850732]
[1739917964882,0.02091344,95734.0,95720.0,0.00750732]
[1739917965267,0.02491344,95734.0,95720.0,0.00850732]
[1739917966340,0.01637765,95731.0,95720.0,0.00850732]
[1739917966550,0.01637765,95731.0,95720.0,0.00750732]
[1739917966753,0.01637765,95731.0,95720.0,0.00850732]
[1739917967097,0.01637765,95731.0,95720.0,0.00750732]
[1739917967317,0.01637765,95731.0,95720.0,0.00850732]
[1739917967818,0.01637765,95731.0,95720.0,0.00750732]
[1739917968058,0.02137765,95731.0,95720.0,0.00850732]
[1739917971753,0.005,95731.0,95720.0,0.00850732]
[1739917972200,0.005,95731.0,95727.0,0.00750732]
[1739917972978,0.005,95731.0,95730.0,0.02750732]
[1739917973232,0.00779225,95736.0,95730.0,0.02750732]
[1739917973468,0.00779225,95736.0,95733.0,0.00150732]
[1739917974705,0.01479225,95736.0,95733.0,0.00150732]
[1739917974946,0.00779225,95736.0,95733.0,0.00194558]
[1739917976250,0.01279225,95736.0,95733.0,0.00294558]
[1739917976469,0.01279225,95736.0,95733.0,0.00194558]
[1739917976897,0.01479225,95736.0,95728.0,0.09934558]
[1739917977161,0.01479225,95736.0,95728.0,0.09978401]
[1739917978115,0.00779225,95736.0,95728.0,0.09978401]
[1739917978395,0.00779225,95736.0,95731.0,0.02]
[1739917979515,0.00979225,95736.0,95731.0,0.02]
[1739917980253,0.00779225,95736.0,95731.0,0.02]
[1739917980509,0.00779225,95736.0,95728.0,0.09978401]
[1739917980718,0.00979225,95736.0,95728.0,0.00043843]
[1739917981207,0.00979225,95736.0,95728.0,0.02043843]
[1739917981770,0.01637714,95735.0,95728.0,0.02043843]
[1739917982284,0.01637714,95735.0,95728.0,4.3e-07]
[1739917982529,0.00979225,95736.0,95714.0,0.0488]
[1739917982530,0.00779225,95736.0,95714.0,0.0488]
[1739917982782,0.00979225,95736.0,95715.0,0.02]
[1739917983026,0.00979225,95736.0,95714.0,0.06923894]
[1739917983270,0.001,95735.0,95714.0,0.04923894]
[1739917983517,0.001,95735.0,95714.0,0.06923894]
[1739917983731,0.00779225,95736.0,95714.0,0.06923894]
[1739917983980,0.00979225,95736.0,95714.0,0.06923894]
[1739917984474,0.00979225,95736.0,95715.0,0.31891022]
[1739917985437,0.00979225,95736.0,95721.0,0.02]
[1739917986406,0.0001701,95740.0,95721.0,0.02]
[1739917986650,0.15,95770.0,95721.0,0.02]
[1739917986930,0.01637649,95733.0,95720.0,0.02]
[1739917987163,0.15,95768.0,95720.0,0.33891022]
[1739917987379,0.01637661,95730.0,95720.0,0.33891022]
[1739917987600,0.01637661,95730.0,95720.0,0.33925042]
[1739917987822,0.15,95766.0,95720.0,0.33925042]
[1739917988079,1.83924555,95765.0,95720.0,0.31925042]
[1739917988282,0.0079178,95724.0,95720.0,0.31925042]
[1739917988490,0.0079178,95724.0,95720.0,0.0003402]
[1739917988698,0.023,95765.0,95720.0,0.0003402]
[1739917988920,0.023,95763.0,95721.0,0.001]
[1739917989101,0.023,95763.0,95720.0,0.00729811]
[1739917989102,0.023,95761.0,95720.0,0.00729811]
[1739917989299,0.023,95759.0,95720.0,0.00829811]
[1739917989500,5.038346,95758.0,95720.0,0.00829811]
[1739917989736,0.02078936,95730.0,95720.0,0.00829811]
[1739917989921,0.02078936,95730.0,95720.0,0.0013402]
[1739917990138,0.02078936,95730.0,95720.0,0.0003402]
[1739917990354,0.15,95763.0,95720.0,0.0003402]
[1739917990563,0.005,95759.0,95720.0,0.0013402]
[1739917990771,0.02123147,95726.0,95721.0,0.00705791]
[1739917990978,0.00795944,95722.0,95720.0,0.0013402]
[1739917991535,0.02433696,95722.0,95720.0,0.0013402]
[1739917992142,0.02433696,95722.0,95720.0,0.0003402]
[1739917992984,0.02433696,95722.0,95720.0,0.0033402]
[1739917997824,0.00795944,95722.0,95720.0,0.0033402]
[1739918000538,0.02433716,95722.0,95720.0,0.0033402]
[1739918002120,0.02433716,95722.0,95701.0,0.023]
[1739918002121,0.23380122,95721.0,95701.0,0.02]
[1739918002322,0.00766514,95684.0,95649.0,0.5457]
[1739918002529,0.00766514,95684.0,95650.0,0.14034402]
[1739918002530,0.156821,95651.0,95650.0,0.14034402]
[1739918002740,0.15,95668.0,95650.0,0.68604402]
[1739918002953,0.15,95668.0,95651.0,0.5457]
[1739918003606,0.02147979,95683.0,95651.0,0.5457]
[1739918003785,0.02147979,95683.0,95652.0,0.17118604]
[1739918004123,0.02147979,95683.0,95653.0,0.0010452]
[1739918004317,0.02147979,95683.0,95652.0,0.06868239]
[1739918004754,0.02147979,95683.0,95653.0,0.00104528]
[1739918004961,0.02147979,95683.0,95654.0,0.00104528]
[1739918005163,0.02147979,95683.0,95655.0,0.0467]
[1739918005531,0.02147979,95683.0,95656.0,0.023]
[1739918005738,0.06264,95682.0,95656.0,0.023]
[1739918005967,0.06264,95682.0,95656.0,0.022]
[1739918006175,0.02147979,95683.0,95655.0,0.0467]
[1739918006385,0.04288915,95682.0,95651.0,0.5457]
[1739918006586,0.02647979,95683.0,95651.0,0.5457]
[1739918006791,0.02147979,95683.0,95651.0,0.60815799]
[1739918007005,0.02147979,95683.0,95656.0,0.001]
[1739918007190,0.0078451,95657.0,95656.0,0.001]
[1739918007392,0.0078451,95657.0,95650.0,0.0781]
[1739918008567,0.01638759,95656.0,95650.0,0.0781]
[1739918012713,0.01638759,95656.0,95650.0,0.07844]
[1739918012968,0.0078451,95657.0,95650.0,0.07844]
[1739918016122,0.01638853,95656.0,95650.0,0.07844]
[1739918018874,0.00380484,95690.0,95650.0,0.07844]
[1739918019128,3.3683,95687.0,95651.0,0.00792199]
[1739918019319,2.6178,95686.0,95651.0,0.00792199]
[1739918019549,2.22080801,95686.0,95651.0,0.00792199]
[1739918019758,2.1003,95685.0,95651.0,0.00792199]
[1739918020380,0.02056771,95659.0,95651.0,0.00792199]
[1739918020594,0.02056771,95659.0,95650.0,0.07844]
[1739918021678,0.00791184,95652.0,95650.0,0.07844]
[1739918022419,0.02430073,95652.0,95650.0,0.07844]
[1739918023037,0.00791184,95652.0,95650.0,0.07844]
[1739918026256,0.02430055,95652.0,95650.0,0.07844]
[1739918030822,0.15,95684.0,95650.0,0.07844]
[1739918031020,0.00789769,95651.0,95650.0,0.09092199]
[1739918031363,0.00789769,95651.0,95650.0,0.07844]
[1739918037770,0.02428637,95651.0,95650.0,0.07844]
[1739918039914,0.02428637,95651.0,95650.0,0.06294]
[1739918043101,0.00789769,95651.0,95650.0,0.06294]
[1739918046181,0.02428693,95651.0,95650.0,0.06294]
[1739918048529,0.02445713,95651.0,95650.0,0.06294]
[1739918049809,0.02445713,95651.0,95650.0,0.06442]
[1739918053081,0.00806789,95651.0,95650.0,0.06442]
[1739918053724,0.00806789,95651.0,95650.0,0.00182]
[1739918057468,0.00806789,95651.0,95648.0,9e-07]
[1739918057675,0.00850602,95651.0,95634.0,0.3246]
[1739918057882,0.00850602,95651.0,95635.0,0.03965404]
[1739918059017,0.01150602,95651.0,95635.0,0.03965404]
[1739918059270,0.01150602,95651.0,95607.0,0.01619516]
[1739918059271,0.2087,95646.0,95607.0,0.01619516]
[1739918059494,0.15,95644.0,95605.0,0.34686762]
[1739918059711,0.02137298,95625.0,95605.0,0.34030252]
[1739918059933,0.02137298,95625.0,95605.0,0.0482]
[1739918060152,0.0282804,95624.0,95605.0,0.0482]
[1739918060335,0.06,95623.0,95605.0,0.0482]
[1739918060557,0.00800228,95614.0,95605.0,0.0482]
[1739918061873,0.00844014,95614.0,95605.0,0.0482]
[1739918062079,0.05996,95613.0,95605.0,0.0482]
[1739918062620,0.05996,95613.0,95604.0,0.0003402]
[1739918062835,0.00844014,95614.0,95604.0,0.0003402]
[1739918063887,0.05127033,95614.0,95604.0,0.0003402]
[1739918066270,0.02084487,95609.0,95604.0,0.0003402]
[1739918066512,0.02084487,95609.0,95596.0,0.1267]
[1739918067004,0.02084487,95609.0,95596.0,0.0795]
[1739918067472,0.02084487,95609.0,95590.0,0.0795]
[1739918067672,0.02084487,95609.0,95591.0,0.01659516]
[1739918069176,0.2087,95591.0,95563.0,0.0795]
[1739918069441,0.2087,95591.0,95565.0,0.0453]
[1739918069929,0.08380122,95582.0,95558.0,0.29210252]
[1739918070199,0.02129169,95575.0,95558.0,0.19775272]
[1739918070407,0.00783961,95559.0,95558.0,0.14910604]
[1739918070655,0.00783961,95559.0,95528.0,17.81165824]
[1739918070879,0.15,95549.0,95528.0,17.81165824]
[1739918071346,0.00043732,95549.0,95528.0,17.81165824]
[1739918071566,0.02592362,95548.0,95528.0,17.81165824]
[1739918072049,0.00043732,95549.0,95528.0,17.81165824]
[1739918072720,0.02592362,95548.0,95528.0,17.81165824]
[1739918072934,0.02592362,95548.0,95528.0,17.91416189]
[1739918073161,0.02592362,95548.0,95528.0,17.81165824]
[1739918073363,0.15,95536.0,95528.0,17.81165824]
[1739918073783,0.02592362,95535.0,95528.0,17.76566373]
[1739918074003,0.00798123,95529.0,95528.0,17.76566373]
[1739918074420,0.03390485,95529.0,95528.0,17.76566373]
[1739918075266,5.21380485,95529.0,95528.0,17.07116165]
[1739918075465,5.24283791,95529.0,95528.0,16.99586156]
[1739918075943,5.23485668,95529.0,95528.0,16.98562806]
[1739918076153,5.23485668,95529.0,95528.0,16.97247837]
[1739918076577,5.57905668,95529.0,95528.0,16.90599941]
[1739918076826,5.57805668,95529.0,95528.0,16.90599941]
[1739918077021,5.58505668,95529.0,95528.0,16.90599941]
[1739918077229,5.57805668,95529.0,95528.0,16.90599941]
[1739918077645,5.58505668,95529.0,95528.0,16.90599941]
[1739918077866,5.60596037,95529.0,95528.0,16.90599941]
[1739918078277,5.60976521,95529.0,95528.0,16.90599941]
[1739918078484,5.63621813,95529.0,95528.0,16.90599941]
[1739918078688,5.63621813,95529.0,95528.0,16.35915437]
[1739918079499,5.42648097,95529.0,95528.0,16.34016039]
[1739918079702,5.42648097,95529.0,95528.0,16.32774124]
[1739918079902,5.41948097,95529.0,95528.0,16.32774124]
[1739918080152,5.42648097,95529.0,95528.0,16.32774124]
[1739918081491,5.38348097,95529.0,95528.0,16.32774124]
[1739918081700,0.35210369,95529.0,95528.0,16.32774124]
[1739918082151,0.02790369,95529.0,95528.0,16.32774124]
[1739918082975,0.02090369,95529.0,95528.0,16.32774124]
[1739918083190,0.007,95529.0,95528.0,16.32774124]
[1739918083440,0.15,95535.0,95528.0,16.32774124]
[1739918083858,0.004,95529.0,95528.0,16.32774124]
[1739918084082,0.15,95535.0,95528.0,16.32774124]
[1739918084304,0.007,95529.0,95528.0,16.32774124]
[1739918084702,0.15,95541.0,95528.0,16.32774124]
[1739918084917,0.20776,95542.0,95528.0,16.32808204]
[1739918084918,0.003,95529.0,95528.0,16.32808204]
[1739918086207,0.003,95529.0,95528.0,16.51508085]
[1739918086421,0.003,95529.0,95528.0,16.59068085]
[1739918086639,0.00043732,95549.0,95543.0,0.023]
[1739918086873,0.00043732,95549.0,95548.0,0.03919516]
[1739918087062,0.00043732,95549.0,95548.0,0.1947295]
[1739918087314,0.00043732,95549.0,95548.0,0.19277588]
[1739918087552,0.00043732,95549.0,95548.0,0.17853434]
[1739918087781,0.00043732,95549.0,95548.0,0.1917295]
[1739918088009,0.00243732,95549.0,95548.0,0.1917295]
[1739918088255,0.00043732,95549.0,95548.0,0.19277587]
[1739918088977,0.02090801,95587.0,95549.0,0.023]
[1739918089214,0.02090801,95587.0,95551.0,0.023]
[1739918089408,0.08374464,95585.0,95549.0,8.278e-05]
[1739918089609,0.00091722,95549.0,95546.0,0.01319516]
[1739918089723,0.00091722,95549.0,95546.0,0.01327799]
[1739918090830,0.23374464,95585.0,95546.0,0.01327799]
[1739918091036,0.15,95583.0,95547.0,0.0134178]
[1739918091241,0.15,95581.0,95547.0,0.0134178]
[1739918091875,0.02103652,95575.0,95547.0,0.0134178]
[1739918092899,0.02103652,95575.0,95547.0,0.0144178]
[1739918094152,0.02103652,95575.0,95547.0,0.0134178]
[1739918094369,0.02703652,95575.0,95548.0,0.01475958]
[1739918094977,0.02703652,95575.0,95546.0,8.283e-05]
[1739918095631,0.02103652,95575.0,95546.0,8.283e-05]
[1739918096019,0.02703652,95575.0,95546.0,8.283e-05]
[1739918096835,0.02720692,95575.0,95546.0,8.283e-05]
[1739918097239,0.02120692,95575.0,95546.0,8.283e-05]
[1739918097626,0.02720692,95575.0,95546.0,8.283e-05]
[1739918099034,0.15,95573.0,95546.0,8.283e-05]
[1739918099240,0.15,95571.0,95546.0,8.283e-05]
[1739918100523,0.02720692,95575.0,95546.0,8.283e-05]
[1739918100768,0.15,95573.0,95546.0,8.283e-05]
[1739918101413,0.155,95573.0,95546.0,8.283e-05]
[1739918101842,0.005,95573.0,95546.0,0.01350063]
[1739918103542,0.08095852,95585.0,95546.0,0.01350063]
[1739918103749,0.5632,95584.0,95546.0,0.01350063]
[1739918104168,0.02106171,95567.0,95546.0,0.01350063]
[1739918104631,0.08095852,95585.0,95546.0,0.01350063]
[1739918104839,0.9429,95584.0,95547.0,0.01475958]
[1739918105049,0.9499,95584.0,95547.0,0.01475958]
[1739918105250,0.007,95584.0,95547.0,0.01475958]
[1739918105565,0.02139126,95567.0,95547.0,0.01475958]
[1739918105782,0.02539126,95567.0,95547.0,0.01475958]
[1739918105986,0.02539126,95567.0,95548.0,0.01489376]
[1739918106590,0.004,95567.0,95548.0,0.01489376]
[1739918107228,0.3242,95582.0,95556.0,0.0494]
[1739918107446,0.05956,95581.0,95556.0,0.0494]
[1739918107609,0.20956,95581.0,95556.0,0.0494]
[1739918107998,0.003,95567.0,95556.0,0.0494]
[1739918108462,0.15,95581.0,95556.0,0.0494]
[1739918108636,0.05952,95566.0,95556.0,0.06447417]
[1739918108834,0.15,95580.0,95557.0,0.0771]
[1739918109243,0.003,95567.0,95554.0,0.01319516]